Workbook

Sheet KLR
B2: Kosten- und Leistungsrechnung
B4: Abgrenzungsrechnung
B5: Berechnungen | E5: Eingabewerte
B13: Betriebsabrechnungsbogen
B14: Berechnungen | E14: Eingabewerte
B22: Kostenträgerrechnung
B23: Berechnungen | E23: Eingabewerte

Sheet Ergebnistabelle
B4: Ergebnistabelle
C6: Finanzbuchhaltung (Rechnungskreis I) | E6: Kosten- und Leistungsrechnung (Rechnungskreis II)
C7: Gesamtergebnis der Finanzbuchhalung
E8: Abgrenzungenrechnung (Neutrales Ergebnis) | G8: Kostenrechnerische
C9: Gewinn- und Verlustrechnung | E9: Unternehmensbezogene Abgrenzungen | G9: Korrekturen | I9: Betriebsergebnisrechung
E10: neutrale | F10: neutrale | G10: betriebliche | H10: verrechnete
B11: Konten | C11: Aufwendungen | D11: Erträge | E11: Aufwendungen | F11: Erträge | G11: Aufwendungen | H11: Kosten | I11: Kosten | J11: Leistungen
B12: Umsatzerlöse | D12: 10520000 | J12: =D12 -> 10520000
B13: Mehrbestände an fertigen Erzeugnissen | D13: 240000 | J13: =D13 -> 240000
B14: Mieterträge | D14: 140000 | F14: =D14 -> 140000
B15: Erträge aus Vermögensabgängen | D15: 0 | F15: =D15 -> 0
B16: Zinserträge | D16: 115000 | F16: =D16 -> 115000
B17: Außerordentliche Erträge | D17: 0 | F17: =D17 -> 0
B18: Minderbestände an fertigen Erzeugnissen | C18: 0 | I18: =C18 -> 0
B19: Aufwendungen für Rohstoffe (Fertigungsmaterial) | C19: 2800000 | G19: =IF(I19=C19,"",C19) -> 2800000 | H19: =IF(I19=C19,"",I19) -> 2940000 | I19: 2940000
B20: Aufwendungen für Hilfsstoffe | C20: 795000 | G20: =IF(I20=C20,"",C20) ->  | H20: =IF(I20=C20,"",I20) ->  | I20: 795000
B21: Aufwendungen für Betriebsstoffe | C21: 35000 | G21: =IF(I21=C21,"",C21) ->  | H21: =IF(I21=C21,"",I21) ->  | I21: 35000
B22: Fremdinstandhaltung | C22: 0 | E22: 0 | I22: =C22-E22 -> 0
B23: Löhne (Fertigungslöhne) | C23: 2400000 | I23: =C23 -> 2400000
B24: Gehälter | C24: 500000 | I24: =C24 -> 500000
B25: Soziale Abgaben | C25: 600000 | I25: =C25 -> 600000
B26: Abschreibungen auf Sachanlagen | C26: 650000 | E26: 40000 | G26: =IF(I26=C26,"",C26-E26) -> 610000 | H26: =IF(I26=C26,"",I26) -> 660000 | I26: 660000
B27: Mietaufwendungen | C27: 0 | I27: =C27 -> 0
B28: Büromaterial | C28: 50000 | I28: =C28 -> 50000
B29: Kosten für Werbung und Reise | C29: 205000 | I29: =C29 -> 205000
B30: Versicherungen | C30: 0 | I30: =C30 -> 0
B31: Verluste aus Vermögensabgängen | C31: 140000 | E31: =C31 -> 140000
B32: Betriebliche Steuern | C32: 190000 | E32: 10000 | I32: =C32-E32 -> 180000
B33: Zinsaufwand | C33: 540000 | G33: =IF(I33=C33,"",C33) -> 540000 | H33: =IF(I33=C33,"",I33) -> 1035000 | I33: 1035000
B34: Außerordentliche Aufwendungen | C34: 260000 | E34: =C34 -> 260000
B35: Kalkulatorischer Unternehmerlohn | H35: =I35 -> 300000 | I35: 300000
B36: Summen | C36: =SUM(C18:C35) -> 9165000 | D36: =SUM(D12:D17) -> 11015000 | E36: =SUM(E18:E35) -> 450000 | F36: =SUM(F12:F17) -> 255000 | G36: =SUM(G18:G35) -> 3950000 | H36: =SUM(H18:H35) -> 4935000 | I36: =SUM(I18:I35) -> 9700000 | J36: =SUM(J12:J17) -> 10760000
B37: Gewinn/Verlust | C37: =IF(D36>C36,C38-C36,"") -> 1850000 | D37: =IF(D36>C36,"",D38-D36) ->  | E37: =IF(F36>E36,E38-E36,"") ->  | F37: =IF(F36>E36,"",F38-F36) -> 195000 | G37: =IF(H36>G36,G38-G36,"") -> 985000 | H37: =IF(H36>G36,"",H38-H36) ->  | I37: =IF(J36>I36,I38-I36,"") -> 1060000 | J37: =IF(J36>I36,"",J38-J36) -> 
C38: =IF(D36>C36,D36,C36) -> 11015000 | D38: =IF(D36>C36,D36,C36) -> 11015000 | E38: =IF(F36>E36,F36,E36) -> 450000 | F38: =IF(F36>E36,F36,E36) -> 450000 | G38: =IF(H36>G36,H36,G36) -> 4935000 | H38: =IF(H36>G36,H36,G36) -> 4935000 | I38: =IF(J36>I36,J36,I36) -> 10760000 | J38: =IF(J36>I36,J36,I36) -> 10760000

Sheet BAB
B2: Betriebsabrechnungsbogen (BAB)
C4: Zahlen der | E4: Kostenstellen | J4: Differenz
C5: Betriebsergebnis- | E5: I | F5: II | G5: III | H5: IV | I5: Fehler- | J5: Betriebsergebnis:
B6: Gemeinkostenart | C6: rechnung | D6: Verteilungsgrundlagen | E6: Material | F6: Fertigung | G6: Verwaltung | H6: Vertrieb | I6: meldung | J6: Kostenstellen
B7: Aufwendungen für Hilfsstoffe | C7: =Ergebnistabelle!I20 -> 795000 | D7: Entnahmescheine | E7: 0 | F7: 710000 | G7: 0 | H7: 85000 | I7: =IF(J7=0,"","Fehler") ->  | J7: =C7-(SUM(E7:H7)) -> 0
B8: Aufwendungen für Betriebsstoffe | C8: =Ergebnistabelle!I21 -> 35000 | D8: Entnahmescheine | E8: 0 | F8: 30000 | G8: 3000 | H8: 2000 | I8: =IF(J8=0,"","Fehler") ->  | J8: =C8-(SUM(E8:H8)) -> 0
B9: Fremdinstandhaltung | C9: =Ergebnistabelle!I22 -> 0 | D9: Rechnungen | E9: 0 | F9: 0 | G9: 0 | H9: 0 | J9: 0
B10: Gehälter | C10: =Ergebnistabelle!I24 -> 500000 | D10: Gehaltsliste | E10: 60000 | F10: 100000 | G10: 290000 | H10: 50000 | J10: 0
B11: Soziale Abgaben | C11: =Ergebnistabelle!I25 -> 600000 | D11: Gehaltsliste | E11: 10000 | F11: 450000 | G11: 130000 | H11: 10000 | J11: 0
B12: Abschreibungen auf Sachanlagen | C12: =Ergebnistabelle!I26 -> 660000 | D12: Wiederbeschaffungswerte | E12: =E27*$C$12/SUM($E$27:$H$27) -> 40006.84932 | F12: =F27*$C$12/SUM($E$27:$H$27) -> 510008.2192 | G12: =G27*$C$12/SUM($E$27:$H$27) -> 69978.08219 | H12: =H27*$C$12/SUM($E$27:$H$27) -> 40006.84932 | J12: 0
B13: Mietaufwendungen | C13: =Ergebnistabelle!I27 -> 0 | D13: Raumgröße in m2 | E13: =E28*$C$13/SUM($E$28:$H$28) -> 0 | F13: =F28*$C$13/SUM($E$28:$H$28) -> 0 | G13: =G28*$C$13/SUM($E$28:$H$28) -> 0 | H13: =H28*$C$13/SUM($E$28:$H$28) -> 0 | J13: 0
B14: Büromaterial | C14: =Ergebnistabelle!I28 -> 50000 | D14: Rechnungen | E14: 0 | F14: 20000 | G14: 30000 | H14: 0 | J14: 0
B15: Kosten für Werbung und Reise | C15: =Ergebnistabelle!I29 -> 205000 | D15: Rechnungen | E15: 0 | F15: 30000 | G15: 122000 | H15: 53000 | J15: 0
B16: Versicherungen | C16: =Ergebnistabelle!I30 -> 0 | D16: Anlagewerte | E16: =E29*$C$16/SUM($E$29:$H$29) -> 0 | F16: =F29*$C$16/SUM($E$29:$H$29) -> 0 | G16: =G29*$C$16/SUM($E$29:$H$29) -> 0 | H16: =H29*$C$16/SUM($E$29:$H$29) -> 0 | J16: 0
B17: Betriebliche Steuern | C17: =Ergebnistabelle!I32 -> 180000 | D17: Anlagewerte | E17: =E29*$C$17/SUM($E$29:$H$29) -> 20000 | F17: =F29*$C$17/SUM($E$29:$H$29) -> 40000 | G17: =G29*$C$17/SUM($E$29:$H$29) -> 90000 | H17: =H29*$C$17/SUM($E$29:$H$29) -> 30000 | J17: 0
B18: Zinsaufwand | C18: =Ergebnistabelle!I33 -> 1035000 | D18: Vermögenswerte | E18: =E30*$C$18/SUM($E$30:$H$30) -> 149301 | F18: =F30*$C$18/SUM($E$30:$H$30) -> 649998 | G18: =G30*$C$18/SUM($E$30:$H$30) -> 109998 | H18: =H30*$C$18/SUM($E$30:$H$30) -> 125703 | J18: 0
B19: Kalkulatorischer Unternehmerlohn | C19: =Ergebnistabelle!I35 -> 300000 | D19: Unternehmerschätzung | E19: =E32*$C$19/SUM($E$32:$H$32) -> 0 | F19: =F32*$C$19/SUM($E$32:$H$32) -> 100000 | G19: =G32*$C$19/SUM($E$32:$H$32) -> 200000 | H19: =H32*$C$19/SUM($E$32:$H$32) -> 0 | J19: 0
B20: Summe der Gemeinkosten | C20: =SUM(C7:C19) -> 4360000 | E20: =SUM(E7:E19) -> 279307.8493 | F20: =SUM(F7:F19) -> 2640006.219 | G20: =SUM(G7:G19) -> 1044976.082 | H20: =SUM(H7:H19) -> 395709.8493 | J20: 0
B21: Zuschlagsgrundlagen | E21: Fertigungsmaterial | F21: Fertigungslöhne | G21: Herstellkosten des Umsatzes
E22: =Ergebnistabelle!$I$19 -> 2940000 | F22: =Ergebnistabelle!$I$23 -> 2400000 | G22: =HK!D14 -> 8019314.068 | H22: =HK!D14 -> 8019314.068
B23: Zuschlagssätze | E23: =E20/E22 -> 0.09500266984 | F23: =F20/F22 -> 1.100002591 | G23: =G20/G22 -> 0.1303074145 | H23: =H20/H22 -> 0.04934460054
E25: Verteilungsschlüssel
E26: Material | F26: Fertigung | G26: Verwaltung | H26: Vertrieb
D27: Wiederbeschaffungswerte | E27: 442500 | F27: 5641000 | G27: 774000 | H27: 442500
D28: Raumgröße in m2 | E28: 400 | F28: 1600 | G28: 500 | H28: 400
D29: Anlagewerteverhältnis | E29: 2 | F29: 4 | G29: 9 | H29: 3
D30: Vermögenswerte | E30: 1658900 | F30: 7222200 | G30: 1222200 | H30: 1396700
D31: Unternehmerleistungs-
D32: verhältnis | E32: 0 | F32: 1 | G32: 2 | H32: 0

Sheet HK
B2: Herstellkosten und Selbstkosten des Umsatzes
B4: Kalkulationsschema
B5: Fertigungsmaterial | C5: =BAB!E22 -> 2940000
B6: + Materialgemeinkosten | C6: =BAB!E20 -> 279307.8493
B7: = Materialkosten | D7: =C5+C6 -> 3219307.849
B8: Fertigungslöhne | C8: =BAB!F22 -> 2400000
B9: + Fertigungsgemeinkosten | C9: =BAB!F20 -> 2640006.219
B10: = Fertigungskosten | D10: =C8+C9 -> 5040006.219
B11: = Herstellkosten der Erzeugung | D11: =D7+D10 -> 8259314.068
B12: - Mehrbestände an fertigen Erzeugnissen | D12: =Ergebnistabelle!$J$13 -> 240000
B13: + Minderbestände an fertigen Erzeugnissen | D13: =Ergebnistabelle!$I$18 -> 0
B14: = Herstellkosten des Umsatzes | D14: =D11-D12+D13 -> 8019314.068
B15: + Verwaltungsgemeinkosten | D15: =BAB!G20 -> 1044976.082
B16: + Vertriebgsgemeinkosten | D16: =BAB!H20 -> 395709.8493
B17: = Selbstkosten des Umsatzes | D17: =D14+D15+D16 -> 9460000

Sheet Kalkulation
B2: Kostenträgerrechnung (Auftragskalkulation)
B4: Kalkulationsschema | C4: %
B5: Fertigungsmaterial | D5: 2500
B6: + Materialgemeinkosten | C6: =BAB!$E$20*100/BAB!$E$22 -> 9.500266984 | D6: =D5*C6/100 -> 237.5066746
B7: = Materialkosten | E7: =D5+D6 -> 2737.506675
B8: Fertigungslöhne | D8: 4600
B9: + Fertigungsgemeinkosten | C9: =BAB!$F$20*100/BAB!$F$22 -> 110.0002591 | D9: =D8*C9/100 -> 5060.01192
B10: = Fertigungskosten | E10: =D8+D9 -> 9660.01192
B11: = Herstellkosten | E11: =E7+E10 -> 12397.51859
B12: + Verwaltungsgemeinkosten | C12: =BAB!$G$20*100/BAB!$G$22 -> 13.03074145 | E12: =E11*C12/100 -> 1615.488594
B13: + Vertriebgsgemeinkosten | C13: =BAB!$H$20*100/BAB!$H$22 -> 4.934460054 | E13: =E11*C13/100 -> 611.7506027
B14: = Selbstkosten | E14: =E11+E12+E13 -> 14624.75779
B15: + Gewinn | C15: 8 | E15: =E14*C15/100 -> 1169.980623
B16: = Barverkaufspreis | E16: =E14+E15 -> 15794.73841
B17: + Kundenskonto | C17: 3 | E17: =(E16*C17)/(100-C17-C18) -> 515.0458179
B18: + Vertreterprovision | C18: 5 | E18: =(E16*C18)/(100-C17-C18) -> 858.4096965
B19: = Zielverkaufspreis | E19: =E16+E17+E18 -> 17168.19393
B20: + Kundenrabatt | C20: 20 | E20: =(E19*C20)/(100-C20) -> 4292.048482
B21: = Nettoverkaufspreis (Angebotspreis) | E21: =E19+E20 -> 21460.24241
